bitfinex-derivatives/quotes_ETHF0:USTF0_20250824
["timestamp","ask_amount","ask_price","bid_price","bid_amount"]
[1756059998355,0.7143,4945.2,4944.5,0.3557]
[1756059998551,0.75,4944.6,4944.5,0.3557]
[1756059998755,0.75,4944.6,4944.5,0.6913]
[1756059998954,0.40458,4944.9,4944.3,0.3557]
[1756059999149,0.40458,4944.9,4944.2,0.3018]
[1756059999657,0.3454,4945.2,4944.3,0.6913]
[1756060000056,0.3454,4945.0,4944.1,0.3018]
[1756060000251,0.3689,4945.4,4944.5,0.4046]
[1756060000252,0.40453,4945.4,4944.5,0.4046]
[1756060000458,0.4045,4945.8,4945.3,0.6913]
[1756060000757,0.3454,4946.1,4945.3,0.6913]
[1756060000758,0.40448,4946.0,4945.6,0.3018]
[1756060000957,0.76683106,4945.8,4945.7,0.6913]
[1756060001150,1.08063106,4945.8,4945.7,0.6913]
[1756060001351,0.3454,4945.7,4944.9,0.3557]
[1756060001563,0.3454,4945.2,4944.5,0.6913]
[1756060001750,0.3454,4945.2,4944.4,0.3018]
[1756060001952,0.02784838,4945.3,4944.0,0.9931]
[1756060002257,0.40455,4945.2,4944.9,0.3018]
[1756060002461,0.43240838,4945.1,4945.0,0.6913]
[1756060002962,1.09160838,4945.1,4945.0,0.3557]
[1756060003256,0.02784838,4945.1,4945.0,0.6913]
[1756060003453,0.37324838,4945.1,4945.0,0.6913]
[1756060003653,0.02784838,4945.1,4945.0,0.6913]
[1756060003956,0.37324838,4945.1,4945.0,0.6913]
[1756060004156,0.68704838,4945.1,4945.0,0.3557]
[1756060004552,0.37324838,4945.1,4945.0,0.6913]
[1756060004860,1.05594838,4945.1,4945.0,0.3557]
[1756060005058,1.05594838,4945.1,4944.5,0.3356]
[1756060005059,0.6592,4944.6,4944.5,0.3356]
[1756060005653,0.37324838,4944.6,4944.5,0.6913]
[1756060006259,0.02784838,4944.6,4944.5,0.6913]
[1756060006457,0.37324838,4944.6,4944.5,0.6913]
[1756060006658,0.68704838,4944.6,4944.5,0.6913]
[1756060006956,0.37324838,4944.6,4944.5,0.6913]
[1756060007157,0.3794918,4944.6,4944.5,0.6913]
[1756060007560,0.3454,4944.4,4943.8,0.3356]
[1756060007862,0.75001,4944.4,4944.0,0.40465]
[1756060008158,0.6827,4944.2,4944.0,0.3356]
[1756060008354,0.3454,4944.1,4944.0,0.3356]
[1756060008555,0.3454,4944.1,4944.0,0.6913]
[1756060008853,0.38573522,4944.1,4944.0,0.6913]
[1756060009163,0.04033522,4944.1,4944.0,0.9931]
[1756060009461,0.40466,4943.8,4943.4,0.3557]
[1756060009761,1.10421522,4943.6,4943.5,0.6913]
[1756060009953,1.47311522,4943.6,4943.5,0.6913]
[1756060010157,1.47311522,4943.6,4942.9,29.137]
[1756060010158,0.3454,4943.1,4942.9,29.137]
[1756060010357,0.3454,4943.1,4943.0,0.25117536]
[1756060010755,0.38573522,4943.1,4943.0,0.94247536]
[1756060010957,0.04033522,4943.1,4943.0,5.24427536]
[1756060011352,0.04033522,4943.1,4943.0,1.24427536]
[1756060012158,0.3454,4944.0,4943.0,5.24427536]
[1756060012357,0.3454,4944.0,4943.8,0.6913]
[1756060012554,0.3454,4944.0,4943.9,0.94247536]
[1756060014555,0.37324838,4944.0,4943.9,0.94247536]
[1756060014759,0.02784838,4944.0,4943.9,0.94247536]
[1756060015158,0.3454,4945.3,4944.8,0.6913]
[1756060015357,1.08725,4945.3,4945.1,0.6913]
[1756060015658,0.3454,4945.3,4945.2,0.94247536]
[1756060016456,0.3454,4945.3,4945.2,0.6913]
[1756060016665,0.3454,4945.3,4945.2,0.94317547]
[1756060016959,0.7183,4945.8,4945.2,0.51327547]
[1756060017165,0.6827,4945.6,4945.3,0.25187547]
[1756060017366,0.3454,4945.5,4945.4,0.94317547]
[1756060018166,0.6592,4945.5,4945.4,0.94317547]
[1756060018367,1.0281,4945.5,4945.4,0.60757547]
[1756060018666,1.0281,4945.5,4945.4,0.25187547]
[1756060019763,0.74978,4947.3,4946.5,0.40444]
[1756060019966,1.01072,4948.5,4945.6,0.0202]
[1756060019967,0.3689,4947.2,4946.6,0.25187547]
[1756060020269,1.0281,4947.0,4946.9,0.6913]
[1756060020567,1.0281,4947.0,4946.9,0.25187547]
[1756060021267,0.3454,4947.0,4946.9,0.94317547]
[1756060021466,0.3454,4947.4,4946.9,1.60897547]
[1756060021766,0.3454,4947.5,4947.0,0.25187547]
[1756060021963,0.77323,4947.9,4947.3,0.40438]
[1756060022164,0.3454,4947.7,4947.5,0.3557]
[1756060022469,0.3138,4947.8,4947.7,0.3557]
[1756060022662,0.3138,4947.8,4947.7,0.60757547]
[1756060022858,0.6592,4947.8,4947.7,0.60757547]
[1756060023170,1.0281,4947.8,4947.7,0.25187547]
[1756060024664,0.3454,4947.8,4947.7,0.94317547]
[1756060025564,1.0281,4947.8,4947.7,0.6913]
[1756060025871,0.3454,4947.8,4947.7,0.94533503]
[1756060026271,1.43243,4947.8,4947.7,0.25403503]
[1756060026575,5.43243,4947.8,4947.7,0.25403503]
[1756060026968,1.43243,4947.8,4947.7,0.25403503]
[1756060027169,1.0281,4947.8,4947.7,0.25392589]
[1756060027563,0.674,4946.8,4946.5,29.4735]
[1756060027771,1.0195,4946.7,4946.6,0.25388445]
[1756060028166,0.3455,4946.7,4946.6,0.94198445]
[1756060028572,0.3455,4946.7,4946.6,0.59638445]
[1756060028573,1.42392,4946.7,4946.6,0.59638445]
[1756060028870,0.3455,4946.7,4946.6,0.94198445]
[1756060029267,1.0195,4945.0,4944.3,0.3425]
[1756060029462,0.4046,4944.6,4944.3,0.3425]
[1756060029666,0.3455,4944.5,4944.3,0.3425]
[1756060029867,1.0195,4944.4,4944.3,0.3425]
[1756060030269,0.674,4944.2,4944.0,0.6881]
[1756060030465,0.40465,4944.0,4943.5,0.6881]
[1756060030772,0.75023,4943.0,4942.4,0.3425]
[1756060030981,0.3167,4942.7,4942.4,0.3425]
[1756060031170,0.40472,4943.1,4942.3,0.6881]
[1756060031474,0.3455,4942.6,4942.1,0.4048]
[1756060031673,0.3455,4942.6,4942.4,0.6881]
[1756060031879,0.3455,4942.6,4942.5,0.6881]
[1756060032869,0.3455,4942.6,4942.5,0.3425]
[1756060033372,0.3455,4943.5,4942.9,0.3425]
[1756060033876,0.3573,4942.7,4941.9,0.3456]
[1756060034082,0.3455,4942.5,4941.9,0.3456]
[1756060034266,0.3455,4942.4,4941.9,0.3456]
[1756060034668,1.0195,4942.2,4941.8,0.3425]
[1756060034871,0.3455,4942.3,4941.3,0.6881]
[1756060035076,0.3167,4942.2,4941.6,0.40484]
[1756060035279,0.3455,4942.0,4941.9,0.6881]
[1756060035579,0.3455,4941.9,4941.2,0.6881]
[1756060035876,0.674,4942.9,4941.8,0.6881]
[1756060036078,0.75024,4942.8,4941.9,0.3425]
[1756060036278,0.40474,4942.8,4941.9,0.3425]
[1756060036472,0.674,4942.9,4941.6,1.01211]
[1756060036673,0.3455,4942.8,4942.6,0.40476]
[1756060036869,0.3455,4942.8,4942.7,0.6881]
[1756060037269,0.3455,4942.8,4941.2,2.64884125]
[1756060037270,0.0202,4943.9,4941.6,0.6881]
[1756060037583,0.674,4942.3,4941.6,0.6881]
[1756060037879,0.3455,4942.2,4941.6,0.6881]
[1756060038178,0.3455,4942.1,4941.6,0.6881]
[1756060038381,0.0202,4943.1,4941.3,0.3425]
[1756060038575,1.0195,4941.6,4941.3,0.3425]
[1756060038774,1.0195,4941.5,4941.3,0.3425]
[1756060038973,0.3573,4941.3,4941.0,0.3425]
[1756060039174,0.3455,4941.2,4941.1,0.6881]
[1756060039378,0.3573,4940.9,4940.6,0.46412657]
[1756060039574,1.0195,4940.8,4940.6,0.46412657]
[1756060039774,1.0195,4940.7,4940.6,0.46412657]
[1756060039974,1.0195,4940.7,4940.6,0.3425]
[1756060040276,0.3455,4941.5,4941.3,0.40487]
[1756060040473,0.3455,4941.5,4941.4,0.6881]
[1756060040979,0.3455,4941.5,4941.4,0.3425]
[1756060041174,1.01193,4942.5,4940.8,0.4049]
[1756060041175,0.3573,4941.2,4940.8,0.3425]
[1756060041384,0.674,4941.1,4940.9,0.6881]
[1756060041673,0.6622,4941.0,4940.9,0.6881]
[1756060042081,1.0195,4941.0,4940.9,0.6881]
[1756060042280,1.0195,4941.0,4939.2,1.01259]
[1756060042281,0.7504,4940.9,4940.3,0.6881]
[1756060042469,0.674,4940.7,4940.1,0.52361745]
[1756060042673,0.3455,4940.6,4940.1,0.40496]
[1756060042880,0.674,4940.5,4940.2,0.3425]
[1756060043076,0.674,4940.5,4940.0,19.74]
[1756060043077,0.3455,4940.4,4940.3,1.09305]
[1756060043379,0.3455,4941.0,4940.6,0.40492]
[1756060043679,0.6622,4941.8,4941.5,0.3456]
[1756060043875,0.40482,4941.9,4941.2,1.09297]
[1756060044082,0.674,4941.8,4941.2,1.09297]
[1756060044282,0.674,4941.6,4941.2,0.75047]
[1756060044482,1.0195,4941.5,4941.3,0.74736]
[1756060044674,0.3455,4941.4,4941.3,0.40486]
[1756060045377,0.76211,4942.0,4940.1,1.15352588]
[1756060045378,1.01204,4942.0,4940.4,0.40493]
[1756060045576,0.7028,4941.0,4940.5,19.736]
[1756060045880,0.674,4941.1,4940.5,19.736]
[1756060046073,1.0195,4940.9,4940.7,0.40491]
[1756060046275,0.3455,4941.2,4940.6,0.6881]
[1756060046470,0.4049,4941.0,4940.6,0.6881]
[1756060046776,1.0195,4940.7,4940.6,0.3425]
[1756060047277,0.40492,4940.6,4940.2,0.6881]
[1756060047482,0.674,4940.4,4940.3,0.3425]
[1756060047677,0.3573,4940.7,4940.4,0.40494]
[1756060047883,0.40488,4941.1,4940.2,0.2495]
[1756060048075,0.3455,4941.0,4940.5,0.3425]
[1756060048277,0.3573,4941.0,4940.6,0.40492]
[1756060048471,0.3455,4940.9,4940.8,0.3425]
[1756060048676,0.3573,4942.1,4940.7,1.01229]
[1756060048883,0.3455,4942.1,4941.3,0.2495]
[1756060049087,0.3455,4942.1,4941.9,0.40481]
[1756060049279,0.3455,4942.1,4941.5,0.6881]
[1756060049280,0.3455,4942.1,4942.0,0.6881]
[1756060049582,1.0195,4942.1,4942.0,0.3425]
[1756060049980,1.01169,4943.7,4942.0,0.3425]
[1756060049981,0.3167,4943.7,4943.0,0.6881]
[1756060050180,0.3167,4943.7,4943.4,0.6881]
[1756060050484,0.3455,4944.1,4943.5,0.6881]
[1756060050684,0.3455,4944.1,4943.5,1.09278]
[1756060050980,0.0202,4945.2,4942.9,19.731]
[1756060050981,0.674,4944.8,4944.0,0.6881]
[1756060051179,0.674,4944.8,4944.6,0.3425]
[1756060051479,0.3455,4945.1,4944.9,0.40457]
[1756060051680,0.3455,4945.1,4945.0,0.6881]
[1756060055185,1.07849,4945.9,4945.1,0.40456]
[1756060055585,0.3455,4945.8,4945.3,0.6881]
[1756060055785,0.674,4945.7,4945.3,0.6881]
[1756060056088,0.3455,4945.4,4944.8,0.3425]
[1756060056388,0.3455,4945.6,4945.0,0.40456]
[1756060056986,0.3455,4945.6,4944.9,0.3425]
[1756060057186,0.40452,4945.6,4944.9,0.3425]
[1756060057377,0.3229,4945.9,4944.5,1.01151]
[1756060057577,0.6489,4946.3,4944.6,0.9254]
[1756060057789,0.326,4946.1,4945.1,0.3644]
[1756060058086,0.3229,4945.9,4945.7,0.4045]
[1756060058283,0.3229,4945.9,4944.9,1.01143]
[1756060058284,0.344,4946.5,4945.9,0.3644]
[1756060058482,0.3229,4946.3,4946.0,0.6839]
[1756060058677,0.9929,4946.4,4946.2,0.3644]
[1756060058883,0.3229,4945.8,4945.3,0.6839]
[1756060059086,0.4045,4945.8,4945.3,0.6839]
[1756060059385,0.326,4945.8,4945.3,0.6839]
[1756060059583,0.326,4945.8,4944.8,0.2415]
[1756060059584,0.3229,4945.7,4945.0,0.40456]
[1756060059782,0.3229,4945.7,4944.6,19.712]
[1756060059783,0.6489,4945.7,4945.1,0.72405]
[1756060060089,0.3229,4945.6,4945.1,0.6839]
[1756060060284,0.67,4945.5,4945.1,0.6839]
[1756060060488,0.3229,4945.9,4944.6,19.707]
[1756060060684,0.3229,4945.9,4945.3,0.40453]
[1756060060890,0.3229,4945.9,4945.4,0.6839]
[1756060061185,0.3229,4946.4,4945.4,0.3644]
[1756060061391,0.9929,4946.2,4945.4,0.3644]
[1756060061689,0.40452,4945.6,4945.4,0.3644]
[1756060061884,0.40452,4945.6,4944.9,0.72407]
[1756060061885,0.6669,4945.0,4944.9,0.3195]
[1756060062085,0.40454,4945.3,4944.7,0.3195]
[1756060062279,0.6489,4944.8,4944.7,0.6839]
[1756060062788,0.6489,4945.3,4945.2,1.08845]
[1756060062985,0.3229,4945.8,4945.4,0.6839]
[1756060063185,0.3229,4945.8,4945.5,0.6839]
[1756060063385,1.3974,4945.9,4945.6,0.6839]
[1756060063585,0.6489,4945.7,4945.6,0.6839]
[1756060064386,0.3229,4945.7,4945.6,0.6839]
[1756060065087,0.344,4946.4,4945.6,0.64601]
[1756060065088,0.3229,4946.3,4945.6,0.64601]
[1756060065286,0.3229,4946.3,4944.3,0.12701871]
[1756060065287,0.3229,4946.5,4945.7,0.2415]
[1756060065488,0.3229,4946.6,4946.3,0.2415]
[1756060065692,0.326,4946.7,4946.5,0.3195]
[1756060065894,0.326,4946.7,4946.6,0.6839]
[1756060066295,0.6489,4946.7,4946.6,0.6839]
[1756060066886,0.3229,4946.7,4946.6,0.6839]
[1756060067084,0.326,4947.3,4946.6,0.6839]
[1756060067284,0.3229,4947.2,4946.7,0.3644]
[1756060067495,0.3229,4947.1,4946.8,0.3644]
[1756060067693,0.3229,4947.2,4946.4,0.3644]
[1756060067885,0.3229,4947.2,4946.7,0.40442]
[1756060068084,0.9929,4947.0,4946.9,0.3644]
[1756060068287,0.9929,4947.0,4946.9,0.6839]
[1756060068695,0.6489,4947.0,4946.9,0.6839]
[1756060068896,0.3229,4947.0,4946.9,0.6839]
[1756060069197,0.3229,4947.0,4946.9,1.08831]
[1756060069390,0.3229,4947.0,4946.9,0.6839]
[1756060070191,0.3229,4947.9,4947.2,0.2415]
[1756060070494,0.326,4948.0,4947.2,0.2415]
[1756060070495,0.3229,4948.0,4947.5,0.6839]
[1756060070694,0.326,4947.9,4947.7,0.3195]
[1756060070897,0.3229,4947.8,4947.5,0.40435]
[1756060071087,0.3229,4947.7,4947.5,0.40435]
[1756060071290,0.3229,4947.7,4947.5,0.2415]
[1756060071605,0.9929,4947.7,4947.6,0.3644]
[1756060071793,0.40434,4947.8,4946.9,0.2415]
[1756060071990,0.3229,4947.5,4947.4,0.3644]
[1756060072192,0.3229,4947.5,4947.4,1.08826]
[1756060073093,0.3229,4948.0,4947.6,0.40435]
[1756060073400,0.3229,4948.0,4947.8,0.3195]
[1756060073401,0.6489,4947.9,4947.8,0.3195]
[1756060073589,0.2067781,4949.3,4947.4,0.53374475]
[1756060073590,0.3229,4947.8,4947.6,0.72385]
[1756060073793,0.3229,4947.8,4947.7,0.3195]
[1756060073987,0.3229,4947.8,4947.7,0.9254]
[1756060074696,0.3229,4947.8,4947.7,0.6839]
[1756060076400,0.9929,4947.8,4947.7,0.6839]
[1756060077497,0.40431,4948.1,4947.4,0.3644]
[1756060077690,0.3229,4947.6,4947.2,0.12765894]
[1756060077889,0.326,4947.7,4947.5,0.40435]
[1756060078292,0.326,4947.7,4947.6,0.6839]
[1756060078493,0.3229,4947.9,4947.4,0.6839]
[1756060078693,0.40432,4948.0,4947.6,0.3195]
[1756060078890,1.6586,4947.7,4947.6,0.4671]
[1756060079602,0.3229,4947.4,4947.3,1.3853]
[1756060079802,0.3229,4947.9,4947.7,0.46]
[1756060080001,0.3229,4947.9,4947.8,1.3853]
[1756060080194,1.6586,4947.9,4947.8,0.3644]
[1756060080394,1.6586,4947.9,4947.4,0.3195]
[1756060080704,0.6657,4947.6,4947.5,1.23585]
[1756060080893,1.6586,4947.6,4947.5,1.55535]
[1756060081098,0.5482,4947.6,4947.5,1.78965]
[1756060081503,0.3229,4947.6,4947.5,2.03115]
[1756060081693,0.5482,4948.0,4947.9,1.10572]
[1756060082207,0.5482,4948.0,4947.9,1.3853]
[1756060082903,1.6586,4948.0,4947.9,1.3853]
[1756060083106,1.3146,4948.0,4947.9,1.3853]
[1756060083304,1.6586,4948.0,4947.5,0.3644]
[1756060083504,0.9886,4947.7,4947.6,0.7866]
[1756060083709,0.6657,4947.2,4947.1,0.7866]
[1756060083902,1.6586,4947.2,4947.1,0.7866]
[1756060084105,1.3146,4947.2,4947.1,1.0209]
[1756060084298,1.3146,4947.2,4947.1,1.3853]
[1756060084705,1.6586,4947.2,4947.1,0.8315]
[1756060086011,1.07008,4947.2,4946.8,0.3195]
[1756060086310,1.6586,4946.9,4946.8,0.8315]
[1756060086903,0.445,4946.5,4946.4,0.6733]
[1756060087104,1.693,4946.5,4946.4,0.8923]
[1756060087509,1.693,4946.0,4945.9,0.7947]
[1756060087705,1.693,4946.0,4945.9,1.74849]
[1756060087706,1.0101,4946.0,4945.9,1.74849]
[1756060087906,1.693,4946.0,4945.9,0.7947]
[1756060088113,0.5651,4946.0,4945.9,1.344]
[1756060088312,1.693,4946.0,4945.9,0.7947]
[1756060088508,1.693,4946.0,4945.9,0.4409]
[1756060089107,1.693,4946.0,4945.9,0.7947]
[1756060089307,1.693,4946.0,4945.9,1.1088]
[1756060089814,0.5651,4946.0,4945.9,1.344]
[1756060090010,0.5727,4946.4,4946.3,0.40446]
[1756060090217,0.3351,4946.4,4946.3,1.74846]
[1756060090410,0.23,4946.8,4946.7,1.08052]
[1756060090708,0.5651,4946.8,4946.7,1.08052]
[1756060090914,0.5651,4946.8,4946.7,1.74842]
[1756060091108,0.3351,4947.4,4946.8,0.6679]
[1756060091314,0.6778,4947.4,4947.3,1.07228]
[1756060092419,0.3351,4947.4,4947.3,1.07228]
[1756060092718,1.018,4947.4,4947.3,0.40438]
[1756060092921,1.018,4947.4,4947.3,0.75818]
[1756060093108,1.018,4947.4,4946.9,0.3141]
[1756060093415,1.018,4947.8,4946.8,0.3538]
[1756060093621,1.018,4947.5,4946.8,0.75821]
[1756060093807,0.675,4947.0,4946.9,0.4044]
[1756060094013,1.3528,4947.0,4946.9,1.7484]
[1756060094222,0.5651,4947.0,4946.9,1.7484]
[1756060094432,0.3351,4947.0,4946.9,1.7484]
[1756060094626,0.9078,4947.5,4947.4,1.74837]
[1756060094831,1.693,4947.5,4947.4,0.3538]
[1756060095027,1.693,4947.4,4947.3,0.4409]
[1756060095233,1.693,4947.4,4947.3,1.1088]
[1756060095432,1.693,4947.4,4947.3,1.51318]
[1756060095834,1.3528,4947.4,4947.3,1.74838]
[1756060096132,1.693,4947.4,4946.9,0.3538]
[1756060096334,1.693,4946.9,4946.8,0.40442]
[1756060096730,0.445,4946.7,4946.6,0.3538]
[1756060096931,1.693,4946.6,4946.5,0.40444]
[1756060097131,0.675,4947.2,4947.1,0.84529]
[1756060097328,1.3579,4947.2,4947.1,1.51319]
[1756060097530,1.3579,4947.2,4946.4,1.42658328]
[1756060097531,0.675,4947.2,4946.4,1.42658328]
[1756060097837,1.693,4946.6,4946.5,0.5728]
[1756060098036,0.40437,4947.4,4946.2,0.3538]
[1756060098037,1.693,4946.3,4946.2,0.3538]
[1756060098238,1.0101,4946.3,4946.2,1.344]
[1756060098439,1.693,4946.3,4946.2,1.344]
[1756060098630,1.3528,4946.3,4946.2,1.344]
[1756060098825,0.7932,4946.3,4946.2,1.344]
[1756060099230,1.693,4946.3,4946.2,1.344]
[1756060099837,1.0101,4946.3,4946.2,1.344]
[1756060100032,0.7932,4946.3,4946.2,1.344]
[1756060100237,0.3351,4946.3,4946.2,1.5939742]
[1756060100831,1.1359,4946.3,4946.2,21.2219742]
[1756060101032,1.693,4946.3,4946.2,20.3188742]
[1756060101534,1.693,4946.3,4946.2,20.4227]
[1756060101734,1.693,4946.3,4946.2,1.04457463]
[1756060102131,0.3351,4946.9,4946.8,1.74841]
[1756060102338,0.3351,4946.9,4946.8,21.85323289]
[1756060102541,0.5651,4946.9,4946.8,21.62393289]
[1756060102735,1.693,4946.9,4946.8,19.87452289]
[1756060103141,1.693,4946.9,4946.8,0.24952289]
[1756060103639,0.2281,4946.4,4946.3,0.3538]
[1756060103938,1.693,4946.4,4946.3,20.98263231]
[1756060104138,0.5651,4946.4,4946.3,21.21783231]
[1756060104935,0.3351,4946.4,4946.3,21.21783231]
[1756060105143,0.3351,4946.4,4946.3,21.21785459]
[1756060105334,0.3351,4946.4,4946.3,21.44715459]
[1756060106137,1.693,4946.4,4946.3,21.21785459]
[1756060106336,1.693,4946.4,4946.3,20.62885459]
[1756060106537,1.693,4946.4,4946.3,0.69075459]
[1756060106740,1.693,4946.4,4946.3,0.24985459]
[1756060106938,1.693,4946.4,4946.3,0.78585459]
[1756060107142,1.693,4946.4,4946.3,1.35865459]
[1756060107336,1.693,4946.4,4946.3,0.69075459]
[1756060107532,1.693,4946.4,4946.3,1.35865459]
[1756060107841,1.693,4946.4,4946.3,0.24985459]
[1756060108046,1.693,4946.4,4946.3,0.69075459]
[1756060108243,1.693,4946.4,4946.3,1.04455459]
[1756060108443,1.693,4946.4,4946.3,0.69075459]
[1756060108942,1.693,4946.4,4946.3,1.35865459]
[1756060109436,1.693,4946.4,4946.3,0.46885459]
[1756060109736,1.693,4946.4,4946.3,1.59385459]
[1756060110739,1.693,4946.4,4946.3,1.35865459]
[1756060110938,1.693,4946.4,4946.3,0.24985459]
[1756060112643,0.675,4945.7,4945.6,19.61]
[1756060112839,1.693,4945.7,4945.6,19.61]
[1756060113041,0.675,4945.4,4945.2,21.03458328]
[1756060113243,0.675,4944.9,4944.8,0.84548]
[1756060113536,1.693,4944.9,4944.8,1.19928]
[1756060113738,1.693,4944.9,4944.8,1.344]
[1756060114335,0.23,4945.1,4945.0,0.589]
[1756060114637,0.7932,4945.1,4945.0,1.344]
[1756060114944,0.5651,4945.4,4945.3,0.9915]
[1756060115138,0.5651,4945.4,4945.3,1.6594]
[1756060115338,1.1359,4945.4,4945.3,1.6594]
[1756060115539,1.3528,4945.4,4945.3,1.344]
[1756060115839,1.693,4945.4,4945.0,21.0444872]
[1756060116038,0.675,4945.1,4945.0,0.5728]
[1756060116235,1.693,4945.1,4945.0,0.5728]
[1756060116544,1.693,4945.0,4944.9,19.602]
[1756060116840,0.2182,4944.8,4944.7,20.1358]
[1756060117146,1.3125,4944.8,4944.7,20.2574]
[1756060117345,0.9793,4944.8,4944.7,22.02927834]
[1756060117546,0.5342,4944.8,4944.7,21.2363]
[1756060117847,0.5342,4944.8,4944.7,22.67497834]
[1756060118038,0.3111,4945.1,4945.0,0.6554]
[1756060118237,0.3111,4945.3,4945.2,0.2266]
[1756060118444,0.3111,4945.3,4945.2,21.2353]
[1756060118445,0.5342,4945.3,4945.2,21.2353]
[1756060118945,0.3332,4945.7,4945.6,0.6554]
[1756060118946,1.3125,4945.7,4945.6,0.6554]
[1756060119247,1.3125,4945.7,4945.6,1.3011]
[1756060119748,1.6653,4945.7,4945.6,1.3011]
[1756060120141,1.3542,4945.7,4945.6,0.7604]
[1756060120347,1.6653,4945.3,4945.2,20.98304]
[1756060120544,1.6653,4945.3,4945.1,19.596]
[1756060120746,0.6682,4945.1,4945.0,20.00056]
[1756060121048,1.6653,4945.1,4945.0,20.32266]
[1756060121251,1.6653,4945.1,4945.0,19.8236]
[1756060121746,1.021,4945.5,4945.4,0.6554]
[1756060121952,0.5342,4945.5,4945.4,1.6343]
[1756060122245,0.2231,4945.5,4945.4,1.6343]
[1756060122744,0.5342,4946.5,4946.4,1.3011]
[1756060122951,0.5342,4946.5,4946.4,1.6343]
[1756060124751,1.0856,4946.5,4946.4,1.3011]
[1756060124951,0.5342,4946.5,4946.4,1.6343]
[1756060125946,0.40443,4946.7,4946.6,0.979]
[1756060125947,0.95583,4946.7,4946.6,0.979]
[1756060126143,1.75863,4946.7,4946.6,0.7604]
[1756060126548,2.06973,4946.7,4946.6,0.7604]
[1756060126847,0.40444,4946.6,4946.1,0.73767]
[1756060127053,0.7745,4946.3,4946.2,0.6554]
[1756060127241,1.3125,4946.3,4946.2,0.6554]
[1756060127441,1.3125,4946.3,4946.2,1.3011]
[1756060128051,1.6653,4946.3,4946.2,1.3011]
[1756060128651,1.6653,4946.3,4946.2,0.9775]
[1756060129554,1.6653,4946.3,4946.2,1.3011]
[1756060130354,1.3125,4946.3,4946.2,1.3011]
[1756060130555,1.6653,4946.3,4946.2,1.3011]
[1756060132146,0.5342,4947.2,4947.1,0.6554]
[1756060132345,0.3111,4948.2,4947.3,0.6457]
[1756060132554,1.40572,4948.0,4947.9,0.4383]
[1756060132750,2.06962,4948.0,4947.9,0.7604]
[1756060133146,0.40421,4949.4,4948.2,0.4043]
[1756060133346,0.5342,4948.3,4948.2,1.3833]
[1756060133648,0.5342,4948.3,4948.2,1.7165]
[1756060133852,0.6682,4947.8,4947.7,1.3011]
[1756060134050,1.6653,4947.8,4947.7,1.3011]
[1756060134758,1.3542,4947.8,4947.3,0.3221]
[1756060134953,0.5342,4947.7,4947.6,1.3011]
[1756060135153,0.5342,4947.7,4947.6,1.6343]
[1756060135349,0.75711,4948.1,4947.6,2.03865]
[1756060135552,0.3111,4948.3,4948.0,0.9789]
[1756060135756,0.3111,4948.3,4948.2,1.6343]
[1756060136153,0.5342,4948.3,4948.2,1.6343]
[1756060136657,1.0856,4948.3,4948.2,1.6343]
[1756060136854,0.2231,4949.0,4948.9,1.3011]
[1756060137053,0.3111,4949.3,4948.9,1.6343]
[1756060137259,0.3111,4949.2,4949.1,1.6343]
[1756060137756,0.3111,4949.2,4948.0,1.031]
[1756060137757,0.9793,4949.8,4949.7,0.6554]
[1756060137952,1.6653,4949.8,4949.2,0.6568]
[1756060138155,0.2231,4949.3,4949.2,0.9886]
[1756060138352,1.6653,4949.3,4948.7,0.3332]
[1756060138558,1.6653,4948.8,4948.7,0.4383]
[1756060138756,0.5342,4948.8,4948.7,1.6343]
[1756060138958,1.0856,4948.8,4948.7,1.3011]
[1756060140162,2.06955,4948.8,4948.7,1.3011]
[1756060140360,0.0202,4949.6,4948.2,0.3332]
[1756060140361,1.3542,4948.3,4948.2,0.3221]
[1756060140563,1.6653,4948.3,4948.2,0.3221]
[1756060140960,0.3111,4949.0,4948.9,0.6554]
[1756060141160,0.40423,4949.1,4948.9,1.6343]
[1756060141462,0.5342,4949.5,4949.4,1.6343]
[1756060142259,0.40419,4949.6,4949.4,1.6343]
[1756060142456,0.40421,4949.4,4949.0,0.3236]
[1756060142660,1.1139,4949.2,4949.1,0.9775]
[1756060142868,1.3321,4949.2,4949.1,1.3011]
[1756060143068,0.4042,4949.5,4949.1,0.6554]
[1756060143259,0.4042,4949.6,4949.3,1.6343]
[1756060143461,1.3125,4949.5,4949.4,1.3011]
[1756060143766,1.6653,4949.5,4949.4,0.7604]
[1756060143966,0.1,4950.2,4949.4,0.9775]
[1756060144171,0.6342,4950.2,4950.1,1.6343]
[1756060144462,0.6342,4950.2,4950.1,1.3011]
[1756060144662,1.7653,4950.2,4950.1,0.5487]
[1756060144859,0.5342,4949.8,4949.7,1.3011]
[1756060145257,0.1,4950.2,4949.6,1.01046]
[1756060145458,0.32045,4951.4,4950.7,0.40409]
[1756060145655,0.40407,4951.1,4949.9,19.546]
[1756060146158,0.73724,4951.5,4950.8,1.38298]
[1756060146459,0.3332,4951.5,4950.9,0.40407]
[1756060146766,0.3413,4951.2,4950.0,0.6511]
[1756060146962,0.40408,4951.0,4950.2,0.40413]
[1756060147260,0.40404,4951.5,4950.7,0.40409]
[1756060147463,0.3331,4952.2,4950.7,0.3705]
[1756060147662,0.72677,4952.3,4951.5,1.0015]
[1756060147859,0.404,4952.0,4951.1,0.3504]
[1756060148060,0.40396,4952.4,4951.4,0.40404]